bitfinex/quotes_ETHUSD_20241119
["timestamp","ask_amount","ask_price","bid_price","bid_amount"]
[1732027033530,3.22316,3102.6,3101.9,3.22374]
[1732027033725,3.22289,3102.8,3101.9,3.22374]
[1732027033726,0.827,3102.9,3101.9,3.22379]
[1732027033929,0.827,3102.9,3102.2,3.22349]
[1732027033930,3.22307,3102.7,3102.2,3.22349]
[1732027034230,3.22293,3102.8,3102.2,3.2235]
[1732027034399,0.48491401,3102.8,3101.6,1.33271361]
[1732027034730,3.22315,3102.6,3101.7,0.06446965]
[1732027035037,3.22332,3102.4,3101.8,3.2239]
[1732027035230,3.22332,3102.4,3101.7,0.06446965]
[1732027035231,6.44591,3102.8,3102.1,3.2236]
[1732027035434,3.22294,3102.8,3101.7,0.06446965]
[1732027035673,3.22316,3102.6,3101.9,3.22374]
[1732027035970,3.22316,3102.6,3102.0,3.22369]
[1732027036162,0.827,3102.9,3101.7,0.06445472]
[1732027036163,3.22332,3102.4,3101.7,3.22397]
[1732027036331,3.22343,3102.3,3101.7,3.22397]
[1732027036672,3.22376,3102.0,3101.4,3.22433]
[1732027036840,3.22386,3101.9,3101.3,0.8017]
[1732027037021,3.22334,3102.4,3101.2,3.22449]
[1732027037335,3.2232,3102.5,3101.8,3.22391]
[1732027037531,3.7686,3103.0,3102.3,3.22333]
[1732027037532,0.7686,3103.0,3102.3,3.22333]
[1732027037727,0.7686,3103.0,3101.6,0.01]
[1732027037728,3.99129,3103.0,3102.1,0.7753]
[1732027037974,3.22269,3103.0,3102.3,3.22332]
[1732027038180,3.22269,3103.0,3102.3,3.22341]
[1732027038326,0.7778,3103.4,3102.1,3.99888]
[1732027038526,3.22307,3102.7,3102.1,3.22361]
[1732027038746,0.7778,3103.4,3102.5,3.22313]
[1732027039052,3.22229,3103.4,3102.8,3.22286]
[1732027039427,3.22229,3103.4,3102.7,3.22297]
[1732027039428,3.22249,3103.2,3102.7,3.22297]
[1732027039497,6.44506,3103.2,3102.6,0.8217]
[1732027039620,3.22275,3103.0,3102.3,3.22336]
[1732027039826,3.22275,3103.0,3101.9,3.22379]
[1732027039827,3.22282,3102.9,3101.9,3.0]
[1732027040056,0.3867256,3103.0,3102.6,3.22308]
[1732027040224,3.22258,3103.1,3102.4,3.22324]
[1732027040422,3.22258,3103.1,3102.0,3.22364]
[1732027040423,3.97961,3103.4,3102.7,3.22293]
[1732027040664,3.97961,3103.4,3102.3,0.55]
[1732027040665,0.7573,3103.4,3102.3,0.55]
[1732027040835,0.7573,3103.4,3101.9,3.22381]
[1732027041084,0.817,3102.4,3102.0,3.22372]
[1732027041259,0.817,3103.0,3102.6,3.22301]
[1732027041472,0.817,3103.0,3101.4,0.7697]
[1732027041473,3.2228,3102.9,3102.3,3.98305]
[1732027041791,0.817,3103.4,3102.3,3.22335]
[1732027041924,3.22264,3103.1,3102.5,3.22319]
[1732027042131,3.22264,3103.1,3102.4,3.22323]
[1732027042348,0.817,3103.4,3102.3,3.0]
[1732027042678,3.22311,3102.6,3102.1,3.22354]
[1732027042837,3.22295,3102.8,3102.2,3.22349]
[1732027043054,3.22258,3103.1,3102.4,3.22325]
[1732027043258,3.22301,3102.7,3102.0,3.0]
[1732027043475,3.22371,3102.1,3101.6,3.22408]
[1732027043805,0.8276,3102.9,3101.8,3.22391]
[1732027043806,3.22333,3102.4,3101.8,3.22391]
[1732027043955,3.22295,3102.8,3102.2,3.22342]
[1732027044300,0.8276,3102.9,3102.3,3.22336]
[1732027044301,4.05046,3102.9,3102.3,3.22336]
[1732027044443,4.05046,3102.9,3101.4,0.7669]
[1732027044444,3.22303,3102.7,3102.2,3.22344]
[1732027044780,3.22303,3102.7,3102.1,3.22356]
[1732027044781,3.22302,3102.7,3102.1,3.22356]
[1732027045278,3.22308,3102.7,3102.0,3.22365]
[1732027045595,3.22317,3102.6,3102.0,3.22369]
[1732027045880,3.22318,3102.6,3101.9,3.22373]
[1732027046097,3.22318,3102.6,3101.4,0.7669]
[1732027046098,3.2232,3102.5,3101.4,0.7669]
[1732027046383,3.22368,3102.1,3101.4,0.7669]
[1732027046695,3.22333,3102.4,3101.8,3.22392]
[1732027046883,0.405034,3102.8,3101.6,3.22404]
[1732027047044,3.22338,3102.4,3101.8,3.22386]
[1732027047244,3.22363,3102.1,3101.6,3.22404]
[1732027047481,3.22342,3102.3,3101.6,6.44811]
[1732027047696,6.44693,3102.3,3101.6,3.22404]
[1732027047986,3.22342,3102.3,3101.6,3.22404]
[1732027048285,3.22358,3102.2,3101.6,3.22404]
[1732027048485,3.22342,3102.3,3101.7,3.22402]
[1732027048646,3.22352,3102.2,3101.7,3.22402]
[1732027048845,0.644694,3102.2,3101.4,0.7669]
[1732027049081,3.22268,3103.0,3101.5,0.55]
[1732027049401,3.22326,3102.5,3101.9,3.22382]
[1732027049539,3.22303,3102.7,3101.9,3.22382]
[1732027049740,0.78289562,3102.9,3101.9,3.22382]
[1732027049741,3.22321,3102.5,3101.9,3.22382]
[1732027050054,3.22321,3102.5,3102.0,3.22371]
[1732027050263,3.22321,3102.5,3101.9,3.22382]
[1732027050467,3.99803,3103.1,3101.7,3.22399]
[1732027050684,3.22355,3102.2,3101.6,3.22411]
[1732027050991,3.22409,3101.7,3101.1,3.99396]
[1732027051201,6.44857,3101.5,3100.9,3.22486]
[1732027051485,3.22425,3101.5,3100.9,3.22484]
[1732027051701,4.62577618,3102.3,3101.2,3.22454]
[1732027051702,3.22387,3101.9,3101.2,3.22454]
[1732027051847,3.22387,3101.9,3101.2,3.22449]
[1732027052201,4.01834,3102.3,3101.8,3.22388]
[1732027052484,4.01834,3102.3,3101.5,3.22416]
[1732027052651,4.01834,3102.3,3101.4,3.22429]
[1732027052652,6.44737,3102.1,3101.4,3.22425]
[1732027052854,3.2239,3101.9,3101.1,3.77458]
[1732027053084,3.22351,3102.2,3101.1,3.22458]
[1732027053284,0.401841,3102.1,3101.1,3.28905747]
[1732027053499,6.44774,3101.9,3101.2,3.22454]
[1732027053797,0.8172,3102.7,3101.5,0.55]
[1732027053995,3.22317,3102.6,3102.1,3.22361]
[1732027054291,3.22248,3103.2,3102.4,3.22325]
[1732027054526,3.22248,3103.2,3102.6,3.22303]
[1732027054690,3.22248,3103.2,3102.6,3.22308]
[1732027054886,3.22297,3102.8,3102.2,3.22346]
[1732027055086,0.8294,3103.1,3102.1,3.77362]
[1732027055286,3.22302,3102.7,3102.1,3.22355]
[1732027055613,3.22324,3102.5,3102.0,3.0]
[1732027055770,3.22326,3102.5,3101.9,3.22381]
[1732027055977,0.8294,3103.1,3101.9,3.22381]
[1732027055978,3.8294,3103.1,3102.1,3.22355]
[1732027056176,3.22296,3102.8,3102.2,3.22349]
[1732027056372,0.705191,3103.0,3101.8,4.0568]
[1732027056625,3.22312,3102.6,3101.8,0.8329]
[1732027056777,3.22312,3102.6,3102.0,3.22362]
[1732027056972,3.22321,3102.5,3102.0,3.22362]
[1732027057214,0.4534591,3102.9,3101.9,3.22382]
[1732027057396,3.2233,3102.5,3101.8,3.22388]
[1732027057627,3.2236,3102.2,3101.6,3.22409]
[1732027057875,3.22337,3102.4,3101.6,3.22408]
[1732027058083,3.22337,3102.4,3101.7,3.0]
[1732027058306,4.00033,3102.8,3101.7,3.0]
[1732027058307,3.22299,3102.7,3101.7,3.0]
[1732027058501,3.2232,3102.5,3101.5,0.8143]
[1732027058688,3.2232,3102.5,3101.3,3.22442]
[1732027058689,3.22374,3102.0,3101.4,6.22428]
[1732027058889,3.868,3102.4,3101.6,3.0]
[1732027059116,0.44537891,3102.7,3101.3,0.02587832]
[1732027059445,3.22367,3102.1,3101.4,3.22427]
[1732027059725,3.22322,3102.5,3101.9,3.22376]
[1732027059932,3.22351,3102.3,3101.6,3.22406]
[1732027060142,3.22399,3101.8,3101.3,3.22436]
[1732027060317,3.2242,3101.6,3101.2,0.8182]
[1732027060519,0.7609,3101.9,3100.6,3.22508]
[1732027060520,3.22436,3101.4,3100.6,3.22508]
[1732027060720,3.22436,3101.4,3100.8,3.22487]
[1732027060914,0.7609,3101.9,3101.2,3.22449]
[1732027060915,3.22399,3101.8,3101.2,3.22449]
[1732027061125,3.22399,3101.8,3101.1,3.22458]
[1732027061126,3.22401,3101.8,3101.3,3.27544999]
[1732027061444,0.7609,3101.9,3101.5,3.22416]
[1732027061607,0.8319,3102.2,3101.6,0.05101118]
[1732027061796,0.8319,3102.2,3101.3,0.7782]
[1732027061797,3.22374,3102.0,3101.4,3.27535118]
[1732027062005,3.22399,3101.8,3101.2,3.22448]
[1732027062204,3.22374,3102.0,3101.2,0.60101969]
[1732027062417,0.8319,3102.2,3101.3,3.22436]
[1732027062629,0.8319,3102.2,3101.2,0.05101969]
[1732027062902,0.8319,3102.2,3101.4,3.22428]
[1732027062903,3.22378,3102.0,3101.4,3.22428]
[1732027063135,3.22409,3101.7,3101.1,3.22462]
[1732027063335,0.727922,3102.0,3100.9,3.22485]
[1732027063336,3.22423,3101.6,3100.9,3.22485]
[1732027063499,3.22423,3101.6,3100.7,6.45001]
[1732027063500,3.22436,3101.4,3100.7,6.45001]
[1732027063715,0.7739,3101.5,3100.9,3.22478]
[1732027063903,0.7739,3101.5,3101.0,3.22474]
[1732027064152,3.22448,3101.3,3100.8,3.2249]
[1732027064942,3.22448,3101.3,3100.6,3.22516]
[1732027065154,3.99817,3101.5,3100.8,3.2249]
[1732027065355,3.99817,3101.5,3100.2,0.7962]
[1732027065652,0.7739,3101.5,3101.0,3.22468]
[1732027065869,0.7739,3101.5,3101.1,3.22466]
[1732027066149,3.99816,3101.5,3100.9,3.22477]
[1732027066397,0.7739,3101.5,3101.1,3.22465]
[1732027066644,3.99818,3101.5,3100.9,3.22477]
[1732027066805,3.99818,3101.5,3100.2,4.02175]
[1732027067004,0.7739,3101.5,3101.1,3.22465]
[1732027067655,0.789,3101.9,3101.5,3.22423]
[1732027067950,4.0129,3101.9,3100.7,3.22507]
[1732027068242,0.789,3101.9,3101.2,3.22445]
[1732027068464,0.789,3101.9,3101.3,3.28889365]
[1732027068748,4.01289,3101.9,3101.3,3.28889365]
[1732027069118,0.789,3101.9,3101.5,3.22416]
[1732027069313,0.789,3101.9,3101.0,0.06446365]
[1732027069546,0.789,3101.9,3101.3,3.22439]
[1732027069748,0.789,3101.9,3101.1,3.2246]
[1732027069749,4.01284,3101.9,3101.1,3.2246]
[1732027069992,3.22456,3101.2,3100.7,0.06446365]
[1732027070163,0.401284,3101.8,3100.5,0.8054]
[1732027070472,3.22452,3101.3,3100.6,6.51469079]
[1732027070643,3.99366,3101.2,3100.6,3.22511]
[1732027070856,3.99373,3101.2,3100.6,3.22516]
[1732027071059,3.99373,3101.2,3100.7,3.22507]
[1732027071584,0.7691,3101.2,3100.7,3.22499]
[1732027071796,7.70573501,3102.2,3100.2,0.7831]
[1732027071797,0.7544,3102.1,3100.3,3.0]
[1732027071959,0.7544,3102.1,3100.8,3.22497]
[1732027072127,3.2238,3102.0,3101.4,3.22427]
[1732027072333,3.9738,3102.6,3101.5,0.8273]
[1732027072536,3.9738,3102.6,3101.7,3.22395]
[1732027072537,3.22336,3102.4,3101.7,3.22395]
[1732027072790,0.7507,3102.6,3102.2,3.22351]
[1732027073083,0.7507,3102.6,3101.5,0.8273]
[1732027073084,3.22342,3102.3,3101.5,0.8273]
[1732027073379,3.22353,3102.2,3101.6,3.22406]
[1732027073558,3.22342,3102.3,3101.6,3.22406]
[1732027073745,3.22342,3102.3,3101.7,3.22398]
[1732027073944,0.644667,3102.3,3101.4,3.22433]
[1732027074280,0.7597,3102.0,3101.4,3.22433]
[1732027074431,0.7597,3102.0,3101.6,3.22413]
[1732027074636,3.0,3103.0,3101.0,0.55]
[1732027074637,3.22324,3102.5,3101.2,0.55]
[1732027074836,3.22324,3102.5,3102.0,3.22372]
[1732027075350,3.22304,3102.7,3102.1,3.22361]
[1732027075556,3.22315,3102.6,3101.8,3.22384]
[1732027075774,3.22323,3102.5,3102.0,3.2237]
[1732027076137,3.22323,3102.5,3101.8,3.22384]
[1732027076453,0.7951,3102.8,3101.9,3.22382]
[1732027076786,3.22301,3102.7,3102.1,6.44707]
[1732027076938,4.01805,3102.8,3102.3,3.22339]
[1732027076939,0.7951,3102.8,3102.3,3.22339]
[1732027077371,0.7951,3102.8,3102.4,3.22325]
[1732027077573,0.7951,3102.8,3102.1,0.06432817]
[1732027077806,3.22305,3102.7,3102.1,3.22355]
[1732027078115,0.401815,3102.7,3101.7,3.22394]
[1732027078322,3.22339,3102.4,3101.8,3.22391]
[1732027078532,3.83087618,3103.1,3101.2,0.55]
[1732027078533,3.22255,3103.2,3101.9,0.7705]
[1732027078680,3.22285,3102.9,3102.3,3.22333]
[1732027079048,3.22258,3103.1,3102.1,3.22361]
[1732027079224,0.61359741,3103.2,3102.1,3.22361]
[1732027079225,3.22299,3102.8,3102.1,3.22361]
[1732027079371,3.22299,3102.8,3102.3,3.2234]
[1732027079586,3.22299,3102.8,3102.1,3.22361]
[1732027079587,3.2231,3102.6,3102.1,3.22361]
[1732027079790,3.22299,3102.8,3102.2,3.22349]
[1732027080077,3.22278,3103.0,3102.4,3.22327]
[1732027080273,3.22298,3102.8,3102.3,0.0616159]
[1732027080853,0.65773909,3103.4,3102.3,0.55]
[1732027080974,3.0,3103.5,3103.0,3.22268]
[1732027080975,3.22219,3103.5,3103.0,3.22268]
[1732027081173,3.22219,3103.5,3102.8,3.22282]
[1732027081174,3.22192,3103.8,3103.1,3.22255]
[1732027081378,3.22168,3104.0,3102.3,3.22335]
[1732027081578,3.22168,3104.0,3103.4,3.22224]
[1732027081837,0.1417608,3104.3,3102.4,3.0]
[1732027081838,3.22187,3103.8,3103.0,3.22259]
[1732027082126,3.543888,3104.0,3103.4,3.22225]
[1732027082318,3.3631308,3104.3,3103.4,3.22219]
[1732027082525,3.3631408,3104.3,3102.4,3.0]
[1732027082820,0.1417608,3104.3,3103.9,3.22167]
[1732027083023,3.3631008,3104.3,3103.6,3.22196]
[1732027083192,0.1417608,3104.3,3104.0,3.22158]
[1732027083386,0.1417608,3104.3,3103.8,3.2218]
[1732027083721,0.1417608,3104.3,3103.1,3.0]
[1732027084016,3.22144,3104.2,3103.3,3.22235]
[1732027084217,3.22217,3103.5,3102.8,3.22285]
[1732027084522,0.1417608,3104.3,3101.9,3.22383]
[1732027084523,3.22247,3103.3,3101.9,3.22383]
[1732027084708,3.0,3103.5,3102.1,3.22359]
[1732027084921,3.0,3103.5,3101.3,3.83087618]
[1732027084922,3.22327,3102.5,3101.0,0.01]
[1732027085217,3.22327,3102.5,3101.2,0.62965385]
[1732027085218,3.22328,3102.5,3101.2,0.62965385]
[1732027085392,3.22343,3102.3,3101.4,3.2243]
[1732027085593,3.22328,3102.5,3101.2,3.2245]
[1732027085777,3.22347,3102.3,3101.6,3.22411]
[1732027085991,3.22362,3102.1,3101.5,3.22424]
[1732027086215,3.22347,3102.3,3101.6,3.22404]
[1732027086421,3.22363,3102.1,3101.0,3.63480913]
[1732027086638,3.22341,3102.3,3101.1,3.22466]
[1732027086818,0.8021,3102.4,3101.6,3.22408]
[1732027087135,3.22368,3102.1,3101.4,3.22426]
[1732027087325,3.22368,3102.1,3101.5,3.22423]
[1732027087713,6.4474,3102.1,3101.4,3.22426]
[1732027087917,3.22345,3102.3,3101.6,3.22408]
[1732027088444,3.22345,3102.3,3101.8,3.22392]
[1732027088646,3.22345,3102.3,3101.7,3.22403]
[1732027088856,4.02543,3102.4,3101.8,3.22387]
[1732027089000,3.22342,3102.3,3101.8,3.22387]
[1732027089410,3.22356,3102.2,3101.3,3.22438]
[1732027089614,4.02546,3102.4,3101.2,0.7631]
[1732027089813,4.02546,3102.4,3101.8,3.22387]
[1732027089814,0.8021,3102.4,3101.8,3.22387]
[1732027090005,3.22381,3102.0,3101.4,3.2243]
[1732027090231,3.22357,3102.2,3100.6,3.22513]
[1732027090558,3.22407,3101.7,3100.9,3.22485]
[1732027090704,0.812,3102.1,3101.3,3.22444]
[1732027090705,3.22391,3101.9,3101.3,3.22444]
[1732027090905,3.22385,3101.9,3101.2,3.22455]
[1732027091655,3.22427,3101.5,3100.9,3.22485]
[1732027091855,3.22427,3101.5,3100.7,3.225]
[1732027091856,3.22446,3101.3,3100.7,3.225]
[1732027092230,0.7699,3101.4,3100.7,3.225]
[1732027092571,0.7699,3101.4,3100.9,3.22484]
[1732027092931,0.7699,3101.4,3100.8,3.22495]
[1732027092932,3.9943,3101.4,3100.8,3.22495]
[1732027093227,3.22447,3101.3,3100.6,3.0]
[1732027093427,3.22447,3101.3,3100.5,3.22523]
[1732027093428,3.22487,3100.9,3100.3,3.22542]
[1732027093634,3.2246,3101.2,3100.0,0.8168]
[1732027093931,3.2245,3101.3,3100.7,3.225]
[1732027094134,4.0182,3101.8,3101.1,3.2246]
[1732027094328,3.22421,3101.6,3100.9,3.22483]
[1732027094626,3.2241,3101.7,3101.1,3.22463]
[1732027095051,0.7942,3101.8,3101.3,3.22442]
[1732027095773,3.22323,3102.5,3101.1,0.55]
[1732027095774,0.8135,3102.2,3101.1,0.55]
[1732027095942,0.8149,3102.6,3101.1,3.77466]
[1732027096141,0.8149,3102.6,3102.1,3.22355]
[1732027096360,3.2233,3102.5,3101.9,3.22376]
[1732027096886,3.2233,3102.5,3101.8,3.22386]
[1732027096887,3.22339,3102.4,3101.8,3.22386]
[1732027097075,4.03807,3102.6,3101.9,3.22379]
[1732027097245,3.2232,3102.5,3101.8,3.22386]
[1732027097447,3.22379,3102.0,3101.3,3.22435]
[1732027097781,3.22416,3101.6,3100.9,3.22478]
[1732027098078,3.2243,3101.5,3100.9,3.22478]
[1732027098381,3.22398,3101.8,3101.2,3.22452]
[1732027098382,3.22404,3101.7,3101.2,3.22452]
[1732027098676,3.22428,3101.5,3100.8,3.22489]
[1732027098829,0.7775,3101.9,3101.1,3.22459]
[1732027098830,4.00137,3101.9,3101.1,3.22459]
[1732027099031,4.00137,3101.9,3101.2,3.22454]
[1732027099032,3.22393,3101.8,3101.2,3.22454]
[1732027099268,3.22412,3101.7,3101.1,3.22459]
[1732027099477,0.7775,3101.9,3101.3,3.22438]
[1732027099478,7.22529,3101.9,3101.3,3.22438]
[1732027099724,7.22529,3101.9,3101.5,3.22421]
[1732027099725,0.7775,3101.9,3101.5,3.22421]
[1732027100172,0.7775,3101.9,3101.1,6.44921]
[1732027100381,3.224,3101.8,3101.2,3.22455]
[1732027100677,3.224,3101.8,3100.8,0.55]
[1732027100678,3.22369,3102.1,3100.9,3.22487]
[1732027100827,0.8059,3102.3,3101.3,3.22441]
[1732027101033,3.22394,3101.8,3101.3,3.22439]
[1732027101373,3.22394,3101.8,3101.1,3.22462]
[1732027101676,0.8125,3101.7,3101.1,3.22462]
[1732027101856,0.8125,3101.7,3101.1,3.22458]
[1732027102069,0.8125,3101.7,3101.2,3.22448]
[1732027102258,0.7562,3102.1,3101.5,3.22416]
[1732027102478,4.02382,3102.7,3101.6,1.3719]
[1732027102939,4.02382,3102.7,3102.0,3.22365]
[1732027102940,7.24691,3102.7,3102.0,3.22365]
[1732027103132,3.22314,3102.6,3101.8,3.22387]
[1732027103373,3.22314,3102.6,3101.0,3.23476]
[1732027103374,0.402394,3102.6,3101.0,0.8219]
[1732027103678,0.8008,3101.9,3101.5,3.22423]
[1732027103877,0.8008,3101.9,3101.3,3.22444]
[1732027104062,0.8008,3101.9,3101.3,3.22438]
[1732027104063,3.22393,3101.8,3101.3,3.22438]
[1732027104375,0.8008,3101.9,3101.4,3.22432]
[1732027104581,4.02468,3101.9,3101.3,3.22437]
[1732027104734,0.8008,3101.9,3101.3,3.2244]
[1732027105091,0.8008,3101.9,3101.5,3.22415]
[1732027105383,3.22316,3102.6,3102.0,3.22365]
[1732027105539,3.22316,3102.6,3101.8,3.2239]
[1732027105739,0.7658,3103.0,3101.6,0.7814]
[1732027105740,3.22295,3102.8,3101.6,0.7814]
[1732027106075,3.22299,3102.8,3102.2,3.22346]
[1732027106232,3.22279,3102.9,3102.4,3.22324]
[1732027106676,3.943912,3102.9,3102.2,3.22344]
[1732027106846,3.22309,3102.7,3102.0,3.22364]
[1732027107184,3.22337,3102.4,3101.7,3.0644594]
[1732027107432,0.8093,3102.2,3101.5,3.22422]
[1732027107704,0.322309,3102.6,3101.8,3.22387]
[1732027107705,3.2233,3102.5,3101.8,3.22387]
[1732027107913,0.644641,3102.5,3101.4,3.22434]
[1732027108214,0.7648,3102.4,3101.1,3.22466]
[1732027108372,0.7648,3102.4,3100.9,0.7933]
[1732027108373,3.22382,3102.0,3101.3,3.22437]
[1732027108569,3.224,3101.8,3101.2,3.22451]
[1732027108764,3.224,3101.8,3101.3,3.22443]
[1732027109108,0.7648,3102.4,3101.4,3.22431]
[1732027109330,3.22383,3101.9,3101.2,3.22452]
[1732027109669,3.22383,3101.9,3101.3,3.22444]
[1732027109871,3.83087618,3102.4,3101.1,6.22464]
[1732027110196,3.22415,3101.6,3101.1,6.22464]
[1732027110400,3.22411,3101.7,3101.1,6.22464]
[1732027110712,0.723299,3101.7,3100.1,3.83087618]
[1732027110909,3.22467,3101.1,3100.5,3.22522]
[1732027111111,3.22467,3101.1,3100.1,3.22562]
[1732027111112,3.22497,3100.9,3100.1,3.22562]
[1732027111314,3.22536,3100.5,3099.9,3.29032291]
[1732027111621,3.22516,3100.7,3100.1,3.22569]
[1732027111783,3.22516,3100.7,3099.8,0.8051]
[1732027111784,3.2249,3100.9,3099.8,0.8051]
[1732027112124,3.2249,3100.9,3100.3,3.22548]
[1732027112301,4.02832,3101.1,3099.8,0.8151]
[1732027112302,0.8036,3101.1,3099.8,0.8151]
[1732027112620,14.47410923,3102.2,3100.8,3.22491]
[1732027112621,3.22432,3101.5,3100.8,3.22491]
[1732027112975,0.8012,3101.6,3100.7,0.55]
[1732027113300,3.86946304,3102.4,3101.3,3.2244]
[1732027113301,0.8012,3102.2,3101.3,3.2244]
[1732027113887,3.86952304,3102.4,3101.7,3.22395]
[1732027114104,0.64615304,3102.4,3101.9,3.22375]
[1732027114372,0.64615304,3102.4,3101.8,3.22384]
[1732027114373,3.86953304,3102.4,3101.8,3.22384]
[1732027114572,0.64615304,3102.4,3101.9,3.22381]
[1732027114836,4.40732762,3102.7,3101.4,0.8196]
[1732027114837,1.18428762,3102.7,3101.6,3.55]
[1732027115038,4.02421,3102.7,3102.2,3.22343]
[1732027115206,0.63771404,3103.1,3102.6,3.22307]
[1732027115408,0.63771404,3103.1,3101.8,3.55]
[1732027115409,0.7805,3103.5,3102.2,3.0]
[1732027115639,4.00267,3103.5,3102.9,3.22277]
[1732027115816,0.7805,3103.5,3103.1,3.22248]
[1732027116016,0.33656702,3103.7,3103.3,3.22237]
[1732027116434,0.7805,3103.9,3103.3,3.22237]
[1732027116435,0.7805,3103.9,3103.3,3.22236]
[1732027116635,0.7805,3103.9,3103.5,3.22216]
[1732027116818,0.7805,3103.9,3103.3,3.22236]
[1732027117195,1.180716,3103.9,3103.1,3.22254]
[1732027117406,0.7805,3103.9,3103.5,3.22214]
[1732027117950,0.7805,3103.9,3103.3,3.22236]
[1732027118255,0.7805,3103.9,3102.7,0.8245]
[1732027118256,4.00226,3103.9,3103.2,6.22246]
[1732027118423,0.7805,3103.9,3103.4,3.22224]
[1732027118599,0.7805,3103.9,3103.3,3.22235]
[1732027118905,0.7805,3103.9,3102.8,6.22283]
[1732027118906,0.7805,3103.9,3103.4,3.22226]
[1732027119621,4.00227,3103.9,3103.3,3.22234]
[1732027119818,4.00226,3103.9,3103.3,3.22234]
[1732027120010,3.22145,3104.2,3104.1,3.22154]
[1732027120011,0.7559,3104.2,3104.1,3.22154]
[1732027120209,0.1417608,3104.3,3104.1,3.22154]
[1732027120210,0.1417608,3104.3,3104.2,3.22144]
[1732027121013,0.1417608,3104.3,3104.1,3.22145]
[1732027121215,0.1417608,3104.3,3104.0,6.22161]
[1732027121419,0.1417608,3104.3,3103.5,0.7591]
[1732027121631,0.1417608,3104.3,3104.2,7.53054]
[1732027122105,0.7761,3105.8,3104.6,3.55]
[1732027122347,0.7761,3105.8,3105.3,3.22024]
[1732027122557,0.7893,3106.2,3105.6,3.21995]
[1732027122767,0.7893,3106.2,3105.5,3.22004]
[1732027123045,0.7893,3106.2,3105.1,0.55]
[1732027123287,0.7893,3106.2,3104.9,0.7909]
[1732027123288,0.7893,3106.2,3105.0,0.55]
[1732027123446,0.7893,3106.2,3105.1,6.441]
[1732027123656,0.7893,3106.2,3105.6,3.2199]
[1732027123875,0.7893,3106.2,3105.6,3.21993]
[1732027124088,0.7893,3106.2,3105.0,3.22059]
[1732027124390,0.7786,3105.5,3104.8,3.22072]
[1732027124751,3.99869,3105.5,3104.6,3.22102]
[1732027124954,3.99869,3105.5,3104.7,3.2209]
[1732027125148,0.399869,3105.4,3104.6,3.22101]
[1732027125361,0.399869,3105.4,3104.2,0.8098]
[1732027125362,0.7786,3105.5,3104.2,0.8098]
[1732027125569,0.72319693,3106.4,3105.4,3.2201]
[1732027125570,0.8328,3106.1,3105.4,3.2201]
[1732027125855,0.8328,3106.8,3106.0,3.21957]
[1732027126047,3.21887,3106.7,3106.0,3.21957]
[1732027126266,4.05157,3106.8,3106.0,3.21957]
[1732027127004,7.2704,3106.8,3106.0,3.21957]
[1732027127303,4.05157,3106.8,3106.0,3.21957]
[1732027127693,0.8328,3106.8,3105.4,3.0]
[1732027127998,0.8107,3107.3,3106.1,0.55]
[1732027128195,0.8107,3107.3,3105.5,1.02570726]
[1732027128196,0.8107,3107.3,3106.8,3.21868]
[1732027128360,0.8107,3107.3,3106.9,3.2186]
[1732027128560,0.8107,3107.3,3106.3,0.816]
[1732027128561,0.8107,3107.3,3106.7,3.21875]
[1732027128760,0.8107,3107.3,3106.9,3.21855]
[1732027129187,0.1417608,3107.4,3106.6,3.55]
[1732027129529,0.1417608,3107.4,3107.3,3.76822]
[1732027129837,3.21644,3109.1,3107.2,0.7961]
[1732027129838,4.23196931,3109.3,3107.2,3.7961]
[1732027130025,3.21677,3108.8,3107.5,0.55]
[1732027130165,0.74480893,3109.2,3107.5,0.55]
[1732027130365,3.21647,3109.0,3107.9,3.21756]
[1732027130569,3.538237,3108.9,3108.1,3.21739]
[1732027130806,3.21676,3108.8,3108.0,3.21746]
[1732027131019,3.96106893,3109.2,3107.7,3.55]
[1732027131315,5.50876231,3109.8,3107.7,3.55]
[1732027131316,3.21673,3108.8,3108.1,4.01342]
[1732027131608,3.21673,3108.8,3108.2,3.21727]
[1732027131609,0.643323,3108.8,3108.2,3.21727]
[1732027131825,3.21603,3109.5,3107.8,3.21768]
[1732027132022,3.21657,3108.9,3108.0,3.21742]
[1732027132184,3.21685,3108.7,3107.7,3.79]
[1732027132514,0.8052,3108.8,3107.8,6.21768]
[1732027132515,3.21688,3108.6,3107.8,6.21768]
[1732027132669,3.21688,3108.6,3107.7,0.79]
[1732027132670,3.21697,3108.6,3107.7,0.79]
[1732027132870,0.8052,3108.8,3107.8,0.01621484]
[1732027132871,3.21749,3108.1,3107.8,0.01621484]
[1732027133107,3.21749,3108.1,3107.3,3.7516]
[1732027133108,3.21749,3108.1,3107.4,0.01621484]
[1732027133313,3.21688,3108.6,3107.4,0.01621484]
[1732027133515,0.7949,3107.9,3106.1,0.7516]
[1732027133834,3.21771,3107.8,3106.2,0.01]
[1732027133968,3.21782,3107.7,3106.7,3.21878]
[1732027134170,4.01251,3107.9,3107.0,3.21851]
[1732027134408,4.01251,3107.9,3106.5,0.7516]
[1732027134409,3.21815,3107.4,3106.5,0.7516]
[1732027134612,0.401251,3107.8,3106.5,0.7516]
[1732027134775,0.7949,3107.9,3106.5,0.7516]
[1732027134972,0.7949,3107.9,3107.2,3.21825]
[1732027135197,3.21751,3108.0,3107.3,3.21822]
[1732027135387,3.21751,3108.0,3107.3,4.01782]
[1732027135586,3.21751,3108.0,3106.7,0.0642094]